fUST/lending_fUST_20250724
["ID","MTS","AMOUNT","RATE_DAILY","PERIOD"]
[374513234,1753332645523,-460.0,0.00019452,2]
[374513235,1753332645532,-460.0,0.00019452,2]
[374513236,1753332645541,-438.44531597,0.00019452,2]
[374513237,1753332645553,-21.55468403,0.00019452,2]
[374513238,1753332645563,-461.54402447,0.00019452,2]
[374513239,1753332645572,-460.0,0.00019452,2]
[374513240,1753332645582,-462.27690676,0.00019452,2]
[374513241,1753332645591,-460.0,0.00019452,2]
[374513242,1753332645600,-460.0,0.00019452,2]
[374513243,1753332645610,-460.0,0.00019452,2]
[374513244,1753332645619,-460.0,0.00019452,2]
[374513245,1753332645629,-460.0,0.00019452,2]
[374513246,1753332645638,-460.0,0.00019452,2]
[374513247,1753332645648,-461.29578883,0.00019452,2]
[374513248,1753332645657,-460.0,0.00019452,2]
[374513249,1753332645677,-460.0,0.00019452,2]
[374513250,1753332645687,-460.0,0.00019452,2]
[374513251,1753332645698,-460.0,0.00019452,2]
[374513252,1753332645708,-460.0,0.00019452,2]
[374513253,1753332645718,-460.0,0.00019452,2]
[374513254,1753332645728,-460.0,0.00019452,2]
[374513255,1753332645738,-460.0,0.00019452,2]
[374513256,1753332645748,-460.0,0.00019452,2]
[374513257,1753332645759,-465.56478976,0.00019452,2]
[374513258,1753332645768,-460.0,0.00019452,2]
[374513259,1753332645778,-460.0,0.00019452,2]
[374513260,1753332645788,-460.0,0.00019452,2]
[374513261,1753332645798,-464.02653358,0.00019452,2]
[374513262,1753332645808,-460.0,0.00019452,2]
[374513263,1753332645817,-460.0,0.00019452,2]
[374513264,1753332645828,-460.0,0.00019452,2]
[374513265,1753332645838,-460.0,0.00019452,2]
[374513266,1753332645848,-460.0,0.00019452,2]
[374513268,1753332645857,-3926.45,0.00019452,2]
[374513269,1753332645867,-460.0,0.00019452,2]
[374513270,1753332645877,-460.0,0.00019452,2]
[374513271,1753332645887,-465.85764302,0.00019452,2]
[374513272,1753332645898,-460.0,0.00019452,2]
[374513273,1753332645907,-460.0,0.00019452,2]
[374513275,1753332645917,-460.0,0.00019452,2]
[374513276,1753332645927,-461.37391314,0.00019452,2]
[374513277,1753332645937,-465.31352507,0.00019452,2]
[374513278,1753332645947,-460.0,0.00019452,2]
[374513279,1753332645956,-3317.41,0.00019452,2]
[374513280,1753332645965,-460.0,0.00019452,2]
[374513281,1753332645976,-460.0,0.00019452,2]
[374513282,1753332645986,-460.0,0.00019452,2]
[374513283,1753332645997,-460.0,0.00019452,2]
[374513284,1753332646007,-462.56280889,0.00019452,2]
[374513285,1753332646017,-460.0,0.00019452,2]
[374513286,1753332646027,-242.69620834,0.00019452,2]
[374513287,1753332646037,-463.85411066,0.00019452,2]
[374513288,1753332646047,-460.0,0.00019452,2]
[374513289,1753332646057,-460.0,0.00019452,2]
[374513291,1753332646067,-460.0,0.00019452,2]
[374513293,1753332646077,-469.48150623,0.00019452,2]
[374513295,1753332646087,-568.91,0.00019452,2]
[374513297,1753332646097,-460.0,0.00019452,2]
[374513299,1753332646107,-886.59,0.00019452,2]
[374513300,1753332646117,-464.55129438,0.00019452,2]
[374513301,1753332646126,-460.0,0.00019452,2]
[374513302,1753332646136,-460.0,0.00019452,2]
[374513303,1753332646146,-460.0,0.00019452,2]
[374513304,1753332646156,-460.0,0.00019452,2]
[374513305,1753332646166,-487.35,0.00019452,2]
[374513306,1753332646176,-460.0,0.00019452,2]
[374513307,1753332646186,-460.0,0.00019452,2]
[374513308,1753332646196,-460.0,0.00019452,2]
[374513309,1753332646206,-462.54360865,0.00019452,2]
[374513310,1753332646216,-460.0,0.00019452,2]
[374513311,1753332646226,-460.0,0.00019452,2]
[374513312,1753332646236,-460.0,0.00019452,2]
[374513313,1753332646246,-460.0,0.00019452,2]
[374513314,1753332646256,-460.0,0.00019452,2]
[374513315,1753332646267,-460.0,0.00019452,2]
[374513316,1753332646276,-460.0,0.00019452,2]
[374513317,1753332646286,-460.0,0.00019452,2]
[374513318,1753332646295,-460.0,0.00019452,2]
[374513319,1753332646306,-460.0,0.00019452,2]
[374513320,1753332646316,-1394.65,0.00019452,2]
[374513321,1753332646326,-460.0,0.00019452,2]
[374513322,1753332646336,-460.0,0.00019452,2]
[374513323,1753332646346,-604.2,0.00019452,2]
[374513324,1753332646355,-460.0,0.00019452,2]
[374513325,1753332646367,-608.57,0.00019452,2]
[374513326,1753332646377,-460.0,0.00019452,2]
[374513327,1753332646386,-460.0,0.00019452,2]
[374513328,1753332646396,-460.0,0.00019452,2]
[374513329,1753332646407,-462.20266952,0.00019452,2]
[374513330,1753332646416,-460.0,0.00019452,2]
[374513331,1753332646425,-460.0,0.00019452,2]
[374513332,1753332646435,-460.0,0.00019452,2]
[374513333,1753332646447,-460.0,0.00019452,2]
[374513335,1753332646457,-460.0,0.00019452,2]
[374513337,1753332646467,-231.07991888,0.00019452,2]
[374513338,1753332646476,-460.0,0.00019452,2]
[374513339,1753332646485,-460.0,0.00019452,2]
[374513340,1753332646495,-460.0,0.00019452,2]
[374513341,1753332646504,-315.77007316,0.00019452,2]
[374513342,1753332646513,-462.26,0.00019452,2]
[374513343,1753332646523,-460.0,0.00019452,2]
[374513344,1753332646532,-460.0,0.00019452,2]
[374513345,1753332646541,-821.0,0.00019452,2]
[374513346,1753332646550,-460.0,0.00019452,2]
[374513347,1753332646560,-460.0,0.00019452,2]
[374513348,1753332646570,-460.0,0.00019452,2]
[374513349,1753332646580,-460.99829227,0.00019452,2]
[374513350,1753332646589,-2673.29,0.00019452,2]
[374513351,1753332646599,-460.0,0.00019452,2]
[374513352,1753332646609,-470.63729375,0.00019452,2]
[374513353,1753332646618,-1375.75,0.00019452,2]
[374513354,1753332646628,-460.0,0.00019452,2]
[374513355,1753332646638,-460.0,0.00019452,2]
[374513356,1753332646647,-460.0,0.00019452,2]
[374513357,1753332646657,-460.0,0.00019452,2]
[374513358,1753332646666,-460.0,0.00019452,2]
[374513359,1753332646676,-460.0,0.00019452,2]
[374513360,1753332646686,-460.0,0.00019452,2]
[374513361,1753332646697,-460.0,0.00019452,2]
[374513362,1753332646707,-460.0,0.00019452,2]
[374513363,1753332646716,-1318.69,0.00019452,2]
[374513364,1753332646726,-464.72,0.00019452,2]
[374513365,1753332646735,-460.0,0.00019452,2]
[374513366,1753332646749,-460.0,0.00019452,2]
[374513367,1753332646759,-460.0,0.00019452,2]
[374513368,1753332646768,-460.0,0.00019452,2]
[374513369,1753332646778,-460.0,0.00019452,2]
[374513370,1753332646787,-460.0,0.00019452,2]
[374513371,1753332646796,-460.0,0.00019452,2]
[374513372,1753332646806,-460.0,0.00019452,2]
[374513373,1753332646816,-460.0,0.00019452,2]
[374513374,1753332646827,-1140.52,0.00019452,2]
[374513375,1753332646836,-460.0,0.00019452,2]
[374513376,1753332646846,-461.67519469,0.00019452,2]
[374513377,1753332646855,-460.0,0.00019452,2]
[374513378,1753332646865,-465.50436324,0.00019452,2]
[374513379,1753332646874,-460.0,0.00019452,2]
[374513380,1753332646884,-460.0,0.00019452,2]
[374513381,1753332646893,-460.0,0.00019452,2]
[374513382,1753332646903,-460.0,0.00019452,2]
[374513383,1753332646914,-506.71,0.00019452,2]
[374513384,1753332646923,-460.0,0.00019452,2]
[374513385,1753332646933,-460.0,0.00019452,2]
[374513386,1753332646943,-464.2752139,0.00019452,2]
[374513387,1753332646954,-465.66257263,0.00019452,2]
[374513388,1753332646963,-460.0,0.00019452,2]
[374513389,1753332646973,-923.03,0.00019452,2]
[374513390,1753332646983,-314.59047777,0.00019452,2]
[374513391,1753332646993,-460.0,0.00019452,2]
[374513392,1753332647003,-460.0,0.00019452,2]
[374513393,1753332647012,-523.34,0.00019452,2]
[374513394,1753332647022,-460.0,0.00019452,2]
[374513395,1753332647032,-460.0,0.00019452,2]
[374513396,1753332647042,-460.0,0.00019452,2]
[374513397,1753332647052,-460.0,0.00019452,2]
[374513398,1753332647062,-460.0,0.00019452,2]
[374513399,1753332647071,-460.0,0.00019452,2]
[374513400,1753332647082,-460.0,0.00019452,2]
[374513401,1753332647092,-460.0,0.00019452,2]
[374513402,1753332647102,-460.0,0.00019452,2]
[374513403,1753332647111,-1452.54,0.00019452,2]
[374513404,1753332647121,-460.0,0.00019452,2]
[374513405,1753332647131,-460.0,0.00019452,2]
[374513406,1753332647140,-460.0,0.00019452,2]
[374513407,1753332647150,-476.81,0.00019452,2]
[374513408,1753332647159,-460.0,0.00019452,2]
[374513409,1753332647169,-460.0,0.00019452,2]
[374513410,1753332647179,-1607.23,0.00019452,2]
[374513411,1753332647189,-460.0,0.00019452,2]
[374513412,1753332647198,-460.0,0.00019452,2]
[374513413,1753332647208,-859.13,0.00019452,2]
[374513414,1753332647218,-460.0,0.00019452,2]
[374513415,1753332647227,-1627.0,0.00019452,2]
[374513416,1753332647237,-460.0,0.00019452,2]
[374513417,1753332647247,-460.0,0.00019452,2]
[374513418,1753332647256,-460.0,0.00019452,2]
[374513419,1753332647266,-502.05907152,0.00019473,2]
[374513420,1753332647276,-504.04967851,0.00019473,2]
[374513421,1753332647286,-489.29898678,0.00019473,2]
[374513422,1753332647295,-500.0,0.00019473,2]
[374513423,1753332647304,-166.34401321,0.00019473,2]
[374513424,1753332647314,-502.52035682,0.00019473,2]
[374513425,1753332647325,-501.68969662,0.00019473,2]
[374513426,1753332647335,-500.0,0.00019473,2]
[374513427,1753332647344,-504.81165985,0.00019473,2]
[374513428,1753332647355,-622.24103038,0.00019473,2]
[374513429,1753332647366,-500.0,0.00019473,2]
[374513430,1753332647375,-500.0,0.00019473,2]
[374513431,1753332647385,-500.0,0.00019473,2]
[374513432,1753332647395,-500.0,0.00019473,2]
[374513433,1753332647405,-503.8610817,0.00019473,2]
[374513434,1753332647414,-500.0,0.00019473,2]
[374513435,1753332647424,-503.42746056,0.00019473,2]
[374513436,1753332647434,-504.30926765,0.00019473,2]
[374513437,1753332647444,-353.96681395,0.00019493,2]
[374513438,1753332647454,-327.68320537,0.00019521,2]
[374513439,1753332647463,-1492.48206989,0.00019648,2]
[374513440,1753332647473,-500.0,0.00019721,2]
[374513441,1753332647482,-500.0,0.00019721,2]
[374513442,1753332647492,-151.0,0.00019726,2]
[374513443,1753332647501,-151.0,0.00019726,2]
[374513444,1753332647510,-460.0,0.00019726,2]
[374513445,1753332647520,-460.0,0.00019726,2]
[374513446,1753332647529,-460.0,0.00019726,2]
[374513447,1753332647538,-460.0,0.00019726,2]
[374513448,1753332647548,-460.0,0.00019726,2]
[374513449,1753332647557,-460.0,0.00019726,2]
[374513450,1753332647567,-460.0,0.00019726,2]
[374513451,1753332647581,-460.0,0.00019726,2]
[374513452,1753332647590,-460.0,0.00019726,2]
[374513453,1753332647599,-460.0,0.00019726,2]
[374513454,1753332647609,-460.0,0.00019726,2]
[374513455,1753332647618,-460.0,0.00019726,2]
[374513456,1753332647628,-460.0,0.00019726,2]
[374513457,1753332647637,-535.7,0.00019726,2]
[374513458,1753332647646,-524.59307269,0.00019726,2]
[374513459,1753332647655,-405.1892947,0.00019726,2]
[374513460,1753332647665,-460.0,0.00019726,2]
[374513461,1753332647674,-716.83,0.00019726,2]
[374513462,1753332647684,-886.63,0.00019726,2]
[374513463,1753332647816,-460.0,0.00019726,2]
[374513464,1753332647830,-554.09054906,0.00019726,2]
[374513465,1753332647839,-460.0,0.00019726,2]
[374513466,1753332647848,-460.0,0.00019726,2]
[374513467,1753332647858,-460.0,0.00019726,2]
[374513468,1753332647867,-460.0,0.00019726,2]
[374513469,1753332647876,-460.0,0.00019726,2]
[374513470,1753332647887,-460.0,0.00019726,2]
[374513471,1753332647897,-460.0,0.00019726,2]
[374513472,1753332647907,-460.0,0.00019726,2]
[374513473,1753332647918,-460.0,0.00019726,2]
[374513474,1753332647928,-460.0,0.00019726,2]
[374513475,1753332647939,-460.0,0.00019726,2]
[374513476,1753332647948,-533.83387281,0.00019726,2]
[374513477,1753332647958,-460.0,0.00019726,2]
[374513478,1753332647968,-460.0,0.00019726,2]
[374513479,1753332647978,-274.46037856,0.00019726,2]
[374513480,1753332647988,-460.0,0.00019726,2]
[374513481,1753332647998,-460.0,0.00019726,2]
[374513482,1753332648009,-460.0,0.00019726,2]
[374513483,1753332648019,-460.0,0.00019726,2]
[374513484,1753332648029,-460.0,0.00019726,2]
[374513485,1753332648039,-460.0,0.00019726,2]
[374513486,1753332648049,-460.0,0.00019726,2]
[374513487,1753332648060,-460.0,0.00019726,2]
[374513488,1753332648070,-460.0,0.00019726,2]
[374513489,1753332648082,-460.0,0.00019726,2]
[374513490,1753332648092,-460.0,0.00019726,2]
[374513491,1753332648102,-460.0,0.00019726,2]
[374513492,1753332648111,-2580.3848743,0.00019726,2]
[374513493,1753332648212,-1346.0651257,0.00019726,2]
[374513494,1753332648222,-460.0,0.00019726,2]
[374513495,1753332648232,-460.0,0.00019726,2]
[374513496,1753332648242,-241.80464349,0.00019726,2]
[374513497,1753332648254,-218.19535651,0.00019726,2]
[374513498,1753332648264,-460.0,0.00019726,2]
[374513499,1753332648274,-460.0,0.00019726,2]
[374513500,1753332648283,-191.68239673,0.00019726,2]
[374513501,1753332648334,-350.8164,0.00019726,2]
[374513502,1753332648346,-320.21991185,0.00019726,2]
[374513503,1753332648465,-2454.69129142,0.00019726,2]
[374513504,1753332648476,-460.0,0.00019726,2]
[374513505,1753332648486,-423.9177655,0.00019726,2]
[374513506,1753332648496,-460.0,0.00019726,2]
[374513507,1753332648505,-460.0,0.00019726,2]
[374513508,1753332648515,-460.0,0.00019726,2]
[374513509,1753332648525,-460.0,0.00019726,2]
[374513510,1753332648536,-568.91,0.00019726,2]
[374513511,1753332648546,-886.59,0.00019726,2]
[374513512,1753332648555,-460.0,0.00019726,2]
[374513513,1753332648565,-460.0,0.00019726,2]
[374513514,1753332648576,-469.16431921,0.00019726,2]
[374513515,1753332648586,-487.35,0.00019726,2]
[374513516,1753332648595,-460.0,0.00019726,2]
[374513517,1753332648605,-460.0,0.00019726,2]
[374513518,1753332648614,-460.0,0.00019726,2]
[374513519,1753332648625,-460.0,0.00019726,2]
[374513520,1753332648634,-460.0,0.00019726,2]
[374513521,1753332648644,-460.0,0.00019726,2]
[374513522,1753332648653,-460.0,0.00019726,2]
[374513523,1753332648663,-460.0,0.00019726,2]
[374513524,1753332648673,-571.54331668,0.00019726,2]
[374513525,1753332648683,-460.0,0.00019726,2]
[374513526,1753332648693,-1394.65,0.00019726,2]
[374513527,1753332648703,-460.0,0.00019726,2]
[374513528,1753332648712,-460.0,0.00019726,2]
[374513529,1753332648723,-604.2,0.00019726,2]
[374513530,1753332648732,-460.0,0.00019726,2]
[374513531,1753332648741,-608.57,0.00019726,2]
[374513532,1753332648753,-460.0,0.00019726,2]
[374513533,1753332648763,-460.0,0.00019726,2]
[374513534,1753332648773,-460.0,0.00019726,2]
[374513535,1753332648783,-460.0,0.00019726,2]
[374513536,1753332648793,-460.0,0.00019726,2]
[374513537,1753332648803,-460.0,0.00019726,2]
[374513538,1753332648813,-460.0,0.00019726,2]
[374513539,1753332648822,-324.17850811,0.00019726,2]
[374513540,1753332648835,-138.08149189,0.00019726,2]
[374513541,1753332648845,-460.0,0.00019726,2]
[374513542,1753332648855,-460.0,0.00019726,2]
[374513543,1753332648865,-460.0,0.00019726,2]
[374513544,1753332648875,-821.0,0.00019726,2]
[374513545,1753332648884,-460.0,0.00019726,2]
[374513546,1753332648894,-1337.13138853,0.00019726,2]
[374513547,1753332648905,-651.75394953,0.00019726,2]
[374513548,1753332648918,-684.40466194,0.00019726,2]
[374513549,1753332648927,-460.0,0.00019726,2]
[374513550,1753332648937,-1360.67673841,0.00019726,2]
[374513551,1753332648949,-15.07326159,0.00019726,2]
[374513552,1753332648959,-460.0,0.00019726,2]
[374513553,1753332648968,-460.0,0.00019726,2]
[374513554,1753332648977,-460.0,0.00019726,2]
[374513555,1753332648987,-460.0,0.00019726,2]
[374513556,1753332648997,-1318.69,0.00019726,2]
[374513557,1753332649006,-460.0,0.00019726,2]
[374513558,1753332649016,-464.72,0.00019726,2]
[374513559,1753332649028,-460.0,0.00019726,2]
[374513560,1753332649038,-460.0,0.00019726,2]
[374513561,1753332649048,-460.0,0.00019726,2]
[374513562,1753332649058,-460.0,0.00019726,2]
[374513563,1753332649068,-14.08909529,0.00019726,2]
[374513564,1753332649315,-460.0,0.00019178,2]
[374513565,1753332649325,-460.0,0.00019452,2]
[374513566,1753332649335,-448.55511548,0.00019726,2]
[374513567,1753332649344,-460.0,0.00019726,2]
[374513568,1753332649355,-460.0,0.00019726,2]
[374513569,1753332649367,-460.0,0.00019726,2]
[374513570,1753332649376,-460.0,0.00019726,2]
[374513571,1753332649386,-1140.52,0.00019726,2]
[374513572,1753332649396,-460.0,0.00019726,2]
[374513573,1753332649407,-460.0,0.00019726,2]
[374513574,1753332649416,-460.0,0.00019726,2]
[374513575,1753332649426,-460.0,0.00019726,2]
[374513576,1753332649438,-506.71,0.00019726,2]
[374513577,1753332649449,-460.0,0.00019726,2]
[374513578,1753332649458,-460.0,0.00019726,2]
[374513579,1753332649468,-460.0,0.00019726,2]
[374513580,1753332649477,-923.03,0.00019726,2]
[374513581,1753332649488,-523.34,0.00019726,2]
[374513582,1753332649497,-491.3387772,0.00019726,2]
[374513583,1753332649507,-460.0,0.00019726,2]
[374513584,1753332649517,-460.0,0.00019726,2]
[374513585,1753332649527,-460.0,0.00019726,2]
[374513586,1753332649536,-460.0,0.00019726,2]
[374513587,1753332649546,-1452.54,0.00019726,2]
[374513588,1753332649556,-460.0,0.00019726,2]
[374513589,1753332649565,-460.0,0.00019726,2]
[374513590,1753332649575,-460.0,0.00019726,2]
[374513591,1753332649585,-476.81,0.00019726,2]
[374513592,1753332649594,-391.39033505,0.00019726,2]
[374513593,1753332649608,-185.83366789,0.00019726,2]
[374513594,1753332649618,-1435.44750567,0.00019726,2]
[374513595,1753332649630,-171.78249433,0.00019726,2]
[374513596,1753332649639,-179.80845338,0.00019726,2]
[374513597,1753332649651,-679.32154662,0.00019726,2]
[374513598,1753332649661,-460.0,0.00019726,2]
[374513599,1753332649670,-460.0,0.00019726,2]
[374513600,1753332649681,-460.0,0.00019726,2]
[374513601,1753332649690,-460.0,0.00019726,2]
[374513602,1753332649699,-460.0,0.00019726,2]
[374513603,1753332649709,-327.68320537,0.00019728,2]
[374513604,1753332649719,-215.88777038,0.00019739,2]
[374513605,1753332649729,-160.0,0.0001974,2]
[374513606,1753332649738,-526.24749348,0.0001974,2]
[374513607,1753332649748,-840.23756827,0.0001974,2]
[374513608,1753332649758,-160.0,0.0001974,2]
[374513609,1753332649768,-160.0,0.0001974,2]
[374513610,1753332649778,-160.0,0.0001974,2]
[374513611,1753332649789,-160.0,0.0001974,2]
[374513612,1753332649799,-160.0,0.0001974,2]
[374513613,1753332649810,-231.16387093,0.0001974,2]
[374513614,1753332649820,-160.0,0.0001974,2]
[374513615,1753332649831,-160.0,0.0001974,2]
[374513616,1753332649840,-160.0,0.0001974,2]
[374513617,1753332649850,-160.0,0.0001974,2]
[374513618,1753332649862,-452.95752278,0.00019742,2]
[374513619,1753332649871,-160.0,0.00019878,2]
[374513620,1753332649882,-154.70002975,0.000199,2]
[374513621,1753332649892,-327.68320537,0.00019934,2]
[374513622,1753332649902,-151.0,0.0002,2]
[374513623,1753332649911,-167.289681,0.0002,2]
[374513624,1753332649923,-460.0,0.0002,2]
[374513625,1753332649933,-460.0,0.0002,2]
[374513626,1753332649942,-265.24248741,0.0002,2]
[374513627,1753332649952,-473.29128939,0.0002,2]
[374513628,1753332649962,-460.0,0.0002,2]
[374513629,1753332649971,-460.0,0.0002,2]
[374513630,1753332649981,-460.0,0.0002,2]
[374513631,1753332649991,-460.0,0.0002,2]
[374513632,1753332650001,-460.0,0.0002,2]
[374513633,1753332650010,-535.7,0.0002,2]
[374513634,1753332650021,-460.0,0.0002,2]
[374513635,1753332650032,-716.83,0.0002,2]
[374513636,1753332650042,-886.63,0.0002,2]
[374513637,1753332650052,-460.0,0.0002,2]
[374513638,1753332650063,-460.0,0.0002,2]
[374513639,1753332650073,-460.0,0.0002,2]
[374513640,1753332650178,-460.0,0.0002,2]
[374513641,1753332650191,-460.0,0.0002,2]
[374513642,1753332650201,-460.0,0.0002,2]
[374513643,1753332650211,-460.0,0.0002,2]
[374513644,1753332650221,-460.0,0.0002,2]
[374513645,1753332650231,-460.0,0.0002,2]
[374513646,1753332650241,-460.0,0.0002,2]
[374513647,1753332650251,-540.99621965,0.0002,2]
[374513648,1753332650261,-460.0,0.0002,2]
[374513649,1753332650271,-460.0,0.0002,2]
[374513650,1753332650280,-460.0,0.0002,2]
[374513651,1753332650290,-460.0,0.0002,2]
[374513652,1753332650301,-460.0,0.0002,2]
[374513653,1753332650311,-460.0,0.0002,2]
[374513654,1753332650322,-460.0,0.0002,2]
[374513655,1753332650333,-3926.45,0.0002,2]
[374513656,1753332650343,-460.0,0.0002,2]
[374513657,1753332650352,-460.0,0.0002,2]
[374513658,1753332650366,-460.0,0.0002,2]
[374513659,1753332650376,-3317.41,0.0002,2]
[374513660,1753332650386,-460.0,0.0002,2]
[374513661,1753332650396,-460.0,0.0002,2]
[374513662,1753332650407,-568.91,0.0002,2]
[374513663,1753332650417,-886.59,0.0002,2]
[374513664,1753332650427,-460.0,0.0002,2]
[374513665,1753332650438,-460.0,0.0002,2]
[374513666,1753332650447,-487.35,0.0002,2]
[374513667,1753332650457,-460.0,0.0002,2]
[374513668,1753332650467,-460.0,0.0002,2]
[374513669,1753332650477,-460.0,0.0002,2]
[374513670,1753332650486,-460.0,0.0002,2]
[374513671,1753332650496,-460.0,0.0002,2]
[374513672,1753332650506,-344.73350716,0.0002,2]
[374513673,1753332650515,-1394.65,0.0002,2]
[374513674,1753332650526,-460.0,0.0002,2]
[374513675,1753332650535,-460.0,0.0002,2]
[374513676,1753332650545,-604.2,0.0002,2]
[374513677,1753332650554,-460.0,0.0002,2]
[374513678,1753332650563,-608.57,0.0002,2]
[374513679,1753332650573,-460.0,0.0002,2]
[374513680,1753332650583,-460.0,0.0002,2]
[374513681,1753332650593,-460.0,0.0002,2]
[374513682,1753332650603,-465.9007739,0.0002,2]
[374513683,1753332650612,-462.26,0.0002,2]
[374513684,1753332650621,-460.0,0.0002,2]
[374513685,1753332650631,-599.42932843,0.0002,2]
[374513686,1753332650640,-821.0,0.0002,2]
[374513687,1753332650650,-460.0,0.0002,2]
[374513688,1753332650659,-2673.29,0.0002,2]
[374513689,1753332650669,-389.42498436,0.0002,2]
[374513690,1753332650678,-1375.75,0.0002,2]
[374513691,1753332650688,-460.0,0.0002,2]
[374513692,1753332650697,-460.0,0.0002,2]
[374513693,1753332650707,-460.0,0.0002,2]
[374513694,1753332650716,-1318.69,0.0002,2]
[374513695,1753332650726,-460.0,0.0002,2]
[374513696,1753332650735,-464.72,0.0002,2]
[374513697,1753332650744,-460.0,0.0002,2]
[374513698,1753332650754,-460.0,0.0002,2]
[374513699,1753332650763,-460.0,0.0002,2]
[374513700,1753332650772,-460.0,0.0002,2]
[374513701,1753332650782,-547.25964141,0.0002,2]
[374513702,1753332650791,-460.0,0.0002,2]
[374513703,1753332650801,-460.0,0.0002,2]
[374513704,1753332650810,-1140.52,0.0002,2]
[374513705,1753332650820,-460.0,0.0002,2]
[374513706,1753332650830,-506.71,0.0002,2]
[374513707,1753332650840,-460.0,0.0002,2]
[374513708,1753332650850,-460.0,0.0002,2]
[374513709,1753332650859,-460.0,0.0002,2]
[374513710,1753332650869,-923.03,0.0002,2]
[374513711,1753332650878,-523.34,0.0002,2]
[374513712,1753332650888,-460.0,0.0002,2]
[374513713,1753332650898,-460.0,0.0002,2]
[374513714,1753332650908,-460.0,0.0002,2]
[374513715,1753332650917,-1452.54,0.0002,2]
[374513716,1753332650927,-464.51892482,0.0002,2]
[374513717,1753332650936,-476.81,0.0002,2]
[374513718,1753332650946,-1607.23,0.0002,2]
[374513719,1753332650956,-859.13,0.0002,2]
[374513720,1753332650966,-460.0,0.0002,2]
[374513721,1753332650976,-219.04979577,0.0002,2]
[374513722,1753332650986,-460.0,0.0002,2]
[374513723,1753332650995,-1041.28350694,0.00020003,2]
[374513724,1753332651005,-1113.13973603,0.00020021,2]
[374513725,1753332651015,-500.0,0.00020021,2]
[374513726,1753332651024,-501.51528229,0.00020021,2]
[374513727,1753332651034,-500.0,0.00020021,2]
[374513728,1753332651044,-500.0,0.00020021,2]
[374513729,1753332651054,-507.5922397,0.00020021,2]
[374513730,1753332651063,-500.0,0.00020021,2]
[374513731,1753332651073,-150.0,0.00020027,2]
[374513732,1753332651083,-327.68320537,0.00020141,2]
[374513733,1753332651092,-218.130727,0.00020187,2]
[374513734,1753332651101,-151.0,0.00020273,2]
[374513735,1753332651111,-460.0,0.00020273,2]
[374513736,1753332651121,-460.0,0.00020273,2]
[374513737,1753332651131,-460.0,0.00020273,2]
[374513738,1753332651141,-460.0,0.00020273,2]
[374513739,1753332651150,-460.0,0.00020273,2]
[374513740,1753332651159,-535.7,0.00020273,2]
[374513741,1753332651169,-408.98061496,0.00020273,2]
[374513742,1753332651178,-716.83,0.00020273,2]